[Event "African Games-chT 2019"]
[Site "Casablanca"]
[Date "2019.08.24"]
[Round "4.15"]
[White "Nassr, Lina"]
[Black "Ogbiyoyo, Perpetual Eloho"]
[Result "1-0"]
[ECO "A80"]
[WhiteElo "1938"]
[BlackElo "1831"]
[Annotator "NA"]
[PlyCount "75"]
[EventDate "2019.08.24"]
[EventType "team-tourn"]
[EventCountry "MAR"]
[SourceTitle "playchess.com"]
[Source "ChessBase"]
[SourceQuality "1"]
[WhiteTeam "Algeria"]
[BlackTeam "Nigeria"]
[WhiteTeamCountry "ALG"]
[BlackTeamCountry "NGR"]
[TimeControl "900+10"]

1. d4 {[%emt 0:00:00]} f5 {[%emt 0:02:02]} 2. Nf3 {[%emt 0:00:00]} Nf6 {[%emt 0:00:02]} 3. e3 {[%emt 0:00:01]} e6 {[%emt 0:00:05]} 4. c4 {[%emt 0:00:07]} d6 {[%emt 0:00:03]} 5. Nc3 {[%emt 0:00:15]} Be7 {[%emt 0:00:03]} 6. Be2 {[%emt 0:00:13]} O-O {[%emt 0:00:04]} 7. Qc2 {[%emt 0:00:32]} c5 {[%emt 0:00:14]} 8. dxc5 {[%emt 0:00:48]} dxc5 {[%emt 0:00:03]} 9. O-O {[%emt 0:00:22]} Nc6 {[%emt 0:00:03]} 10. b3 {[%emt 0:01:26]} a6 {[%emt 0:00:11]} 11. Bb2 {[%emt 0:00:05]} Qc7 {[%emt 0:00:32]} 12. Rfd1 {[%emt 0:00:19]} e5 {[%emt 0:01:38]} 13. Nd5 {[%emt 0:01:09]} Nxd5 {[%emt 0:00:14]} 14. cxd5 {[%emt 0:00:05]} Nb4 {[%emt 0:00:07]} 15. Qd2 {[%emt 0:03:07]} e4 {[%emt 0:02:23]} 16. d6 {[%emt 0:01:34]} Bxd6 {[%emt 0:00:56]} 17. Qxd6 {[%emt 0:00:05]} Qxd6 {[%emt 0:00:04]} 18. Rxd6 {[%emt 0:00:02]} exf3 {[%emt 0:00:03]} 19. Bxf3 {[%emt 0:00:02]} Re8 {[%emt 0:04:45]} 20. a3 {[%emt 0:02:04]} Nc6 {[%emt 0:00:07]} 21. Rc1 {[%emt 0:00:40]} Be6 {[%emt 0:01:58]} 22. Rxc5 {[%emt 0:01:06]} Rad8 {[%emt 0:01:04]} 23. Rxd8 {[%emt 0:01:28]} Rxd8 {[%emt 0:00:05]} 24. h3 {[%emt 0:00:39]} g6 {[%emt 0:01:19]} 25. b4 {[%emt 0:00:38]} Rc8 {[%emt 0:00:27]} 26. Bc3 {[%emt 0:00:38]} Kf7 {[%emt 0:00:04]} 27. Kf1 {[%emt 0:00:30]} Nd8 {[%emt 0:00:03]} 28. Rxc8 {[%emt 0:00:19]} Bxc8 {[%emt 0:00:02]} 29. Ke2 {[%emt 0:00:04]} Ke6 {[%emt 0:00:04]} 30. Kd3 {[%emt 0:00:06]} Bd7 {[%emt 0:00:16]} 31. Kc4 {[%emt 0:00:27]} Kd6 {[%emt 0:00:31]} 32. Bd4 {[%emt 0:00:33]} Bb5+ {[%emt 0:00:35]} 33. Kc3 {[%emt 0:00:03]} Nc6 {[%emt 0:00:10]} 34. Bc5+ {[%emt 0:00:24]} Ke5 {[%emt 0:00:10]} 35. Bd1 {[%emt 0:00:39]} Bf1 {[%emt 0:00:10]} 36. f4+ {[%emt 0:00:10]} Kd5 37. Bf3+ Ke6 38. e4 1-0

[Event "African Games-chT 2019"]
[Site "Casablanca"]
[Date "2019.08.24"]
[Round "4.16"]
[White "Ofowino, Toritsemuwa"]
[Black "Latreche, Sabrina"]
[Result "1/2-1/2"]
[ECO "A80"]
[WhiteElo "1877"]
[BlackElo "2064"]
[Annotator "NA"]
[PlyCount "89"]
[EventDate "2019.08.24"]
[EventType "team-tourn"]
[EventCountry "MAR"]
[SourceTitle "playchess.com"]
[Source "ChessBase"]
[SourceQuality "1"]
[WhiteTeam "Nigeria"]
[BlackTeam "Algeria"]
[WhiteTeamCountry "NGR"]
[BlackTeamCountry "ALG"]
[TimeControl "900+10"]

1. d4 {[%emt 0:00:00]} f5 {[%emt 0:00:00]} 2. Bf4 {[%emt 0:00:00]} Nf6 {[%emt 0:00:00]} 3. e3 {[%emt 0:00:00]} b6 {[%emt 0:00:08]} 4. h3 {[%emt 0:00:01]} Bb7 {[%emt 0:00:02]} 5. Nf3 {[%emt 0:00:01]} e6 {[%emt 0:00:15]} 6. Be2 {[%emt 0:00:09]} Be7 {[%emt 0:00:05]} 7. O-O {[%emt 0:00:28]} O-O {[%emt 0:00:05]} 8. c4 {[%emt 0:00:05]} Ne4 {[%emt 0:00:22]} 9. Qc2 {[%emt 0:00:29]} c5 {[%emt 0:01:40]} 10. Nc3 {[%emt 0:00:09]} d6 {[%emt 0:00:10]} 11. Rad1 {[%emt 0:00:15]} a6 {[%emt 0:03:00]} 12. Bh2 {[%emt 0:02:44]} Nd7 {[%emt 0:01:15]} 13. Nd2 {[%emt 0:00:42]} Nxd2 {[%emt 0:02:16]} 14. Rxd2 {[%emt 0:00:11]} cxd4 15. exd4 {[%emt 0:00:26]} Qe8 {[%emt 0:00:48]} 16. Qd1 {[%emt 0:00:11]} Rc8 {[%emt 0:00:36]} 17. Bh5 {[%emt 0:00:43]} g6 {[%emt 0:00:29]} 18. Be2 {[%emt 0:00:02]} f4 {[%emt 0:00:24]} 19. d5 {[%emt 0:01:05]} e5 {[%emt 0:00:18]} 20. Rc2 {[%emt 0:00:39]} Nf6 {[%emt 0:00:12]} 21. Qd3 {[%emt 0:00:29]} Rc7 {[%emt 0:00:42]} 22. Bf3 {[%emt 0:01:31]} Bc8 {[%emt 0:00:18]} 23. Ne4 {[%emt 0:00:24]} Bf5 {[%emt 0:00:13]} 24. Nxf6+ {[%emt 0:00:04]} Rxf6 {[%emt 0:00:16]} 25. Be4 {[%emt 0:00:01]} Qf8 {[%emt 0:02:58]} 26. Bxf5 {[%emt 0:02:26]} gxf5 {[%emt 0:00:01]} 27. f3 {[%emt 0:00:05]} Rg6 {[%emt 0:00:24]} 28. Kh1 {[%emt 0:00:10]} Bh4 {[%emt 0:00:03]} 29. Bg1 {[%emt 0:00:18]} Rb7 {[%emt 0:00:13]} 30. Rfc1 {[%emt 0:00:18]} Bd8 {[%emt 0:00:27]} 31. b4 {[%emt 0:00:41]} a5 {[%emt 0:00:55]} 32. c5 {[%emt 0:01:34]} dxc5 {[%emt 0:00:55]} 33. bxc5 {[%emt 0:00:04]} bxc5 {[%emt 0:00:05]} 34. Bxc5 {[%emt 0:00:10]} Qf6 {[%emt 0:00:00]} 35. d6 {[%emt 0:00:35]} Rgg7 {[%emt 0:00:11]} 36. Qd5+ {[%emt 0:00:08]} Kh8 {[%emt 0:00:03]} 37. Ba3 {[%emt 0:00:18]} Rbd7 {[%emt 0:00:27]} 38. Rc8 {[%emt 0:00:28]} Qg5 {[%emt 0:00:41]} 39. R1c2 {[%emt 0:00:05]} Qg3 {[%emt 0:00:01]} 40. Qxe5 {[%emt 0:00:14]} h6 {[%emt 0:00:09]} 41. Qe8+ {[%emt 0:00:38]} Kh7 {[%emt 0:00:01]} 42. Rxd8 {[%emt 0:00:01]} Rxd8 {[%emt 0:00:01]} 43. Qxd8 {[%emt 0:00:22]} Qe1+ {[%emt 0:00:02]} 44. Kh2 {[%emt 0:00:00]} Qg3+ {[%emt 0:00:01]} 45. Kg1 1/2-1/2

[Event "African Games-chT 2019"]
[Site "Casablanca"]
[Date "2019.08.24"]
[Round "4.17"]
[White "Makoto, Rodwell"]
[Black "Amba, Oyon Marius Claude"]
[Result "1-0"]
[ECO "A05"]
[WhiteElo "2373"]
[BlackElo "1911"]
[Annotator "NA"]
[PlyCount "113"]
[EventDate "2019.08.24"]
[EventType "team-tourn"]
[EventCountry "MAR"]
[SourceTitle "playchess.com"]
[Source "ChessBase"]
[SourceQuality "1"]
[WhiteTeam "Zimbabwe"]
[BlackTeam "CMR"]
[WhiteTeamCountry "ZIM"]
[TimeControl "900+10"]

1. Nf3 {[%emt 0:00:00]} Nf6 {[%emt 0:00:00]} 2. c4 {[%emt 0:00:00]} g6 {[%emt 0:00:00]} 3. g3 {[%emt 0:00:00]} Bg7 {[%emt 0:00:00]} 4. Bg2 {[%emt 0:00:00]} c5 {[%emt 0:00:01]} 5. O-O {[%emt 0:00:00]} O-O {[%emt 0:00:02]} 6. d4 {[%emt 0:00:00]} cxd4 {[%emt 0:00:02]} 7. Qxd4 {[%emt 0:00:00]} Nc6 {[%emt 0:00:02]} 8. Qh4 {[%emt 0:00:00]} Qa5 {[%emt 0:00:59]} 9. Nc3 {[%emt 0:00:00]} Qh5 {[%emt 0:00:05]} 10. Qxh5 {[%emt 0:00:00]} Nxh5 {[%emt 0:00:02]} 11. c5 {[%emt 0:00:09]} d6 {[%emt 0:00:16]} 12. cxd6 {[%emt 0:00:02]} exd6 {[%emt 0:00:01]} 13. Rd1 {[%emt 0:00:01]} Bxc3 {[%emt 0:01:40]} 14. bxc3 {[%emt 0:00:02]} Rd8 {[%emt 0:00:01]} 15. Rb1 {[%emt 0:00:38]} Rb8 {[%emt 0:00:58]} 16. Bg5 {[%emt 0:01:08]} f6 {[%emt 0:00:12]} 17. Be3 {[%emt 0:00:01]} Be6 {[%emt 0:00:09]} 18. a3 {[%emt 0:00:09]} Kf7 {[%emt 0:00:27]} 19. Nd2 {[%emt 0:00:24]} f5 {[%emt 0:00:28]} 20. Rb5 {[%emt 0:01:09]} d5 {[%emt 0:00:42]} 21. Rdb1 {[%emt 0:00:27]} b6 {[%emt 0:00:10]} 22. c4 {[%emt 0:00:57]} d4 {[%emt 0:00:43]} 23. Bg5 {[%emt 0:00:01]} Rdc8 {[%emt 0:00:01]} 24. c5 {[%emt 0:00:10]} Na5 {[%emt 0:01:21]} 25. cxb6 {[%emt 0:02:24]} axb6 {[%emt 0:00:01]} 26. Nf3 {[%emt 0:00:00]} Nc4 {[%emt 0:02:04]} 27. Bc1 {[%emt 0:00:01]} Nd6 {[%emt 0:01:33]} 28. R5b4 {[%emt 0:00:44]} Kg8 {[%emt 0:00:32]} 29. Nxd4 {[%emt 0:00:03]} Bd7 {[%emt 0:00:30]} 30. Bd5+ {[%emt 0:00:11]} Kg7 {[%emt 0:00:09]} 31. Bb2 {[%emt 0:00:20]} Nf6 {[%emt 0:00:13]} 32. Bf3 {[%emt 0:00:32]} Nde4 {[%emt 0:01:27]} 33. Rd1 {[%emt 0:00:38]} Kf7 {[%emt 0:00:26]} 34. Nb5 {[%emt 0:00:17]} Bxb5 {[%emt 0:00:53]} 35. Rxb5 {[%emt 0:00:01]} Rc5 {[%emt 0:00:17]} 36. Rb3 {[%emt 0:00:25]} b5 {[%emt 0:00:17]} 37. Bxf6 {[%emt 0:00:16]} Nxf6 {[%emt 0:00:12]} 38. a4 {[%emt 0:00:14]} b4 {[%emt 0:00:02]} 39. Rd4 {[%emt 0:00:05]} g5 {[%emt 0:00:47]} 40. Rdxb4 {[%emt 0:00:31]} Rxb4 {[%emt 0:00:11]} 41. Rxb4 {[%emt 0:00:01]} g4 {[%emt 0:00:07]} 42. Bb7 {[%emt 0:00:01]} Rc1+ {[%emt 0:00:18]} 43. Kg2 {[%emt 0:00:01]} Ra1 {[%emt 0:00:14]} 44. Rf4 {[%emt 0:00:30]} Kg6 {[%emt 0:00:08]} 45. Bc8 {[%emt 0:00:09]} h5 {[%emt 0:00:16]} 46. Bxf5+ {[%emt 0:00:06]} Kg5 {[%emt 0:00:02]} 47. Bd3 {[%emt 0:00:11]} Nd7 {[%emt 0:00:23]} 48. Rf5+ {[%emt 0:00:08]} Kh6 {[%emt 0:00:02]} 49. a5 {[%emt 0:00:01]} Nb8 {[%emt 0:00:08]} 50. a6 {[%emt 0:00:07]} Nd7 {[%emt 0:00:16]} 51. Rd5 {[%emt 0:00:28]} Nf6 {[%emt 0:00:12]} 52. Rc5 {[%emt 0:00:16]} Nd7 {[%emt 0:00:40]} 53. Rc7 {[%emt 0:00:03]} Ne5 {[%emt 0:00:11]} 54. a7 {[%emt 0:00:05]} Kg5 {[%emt 0:00:30]} 55. Be4 {[%emt 0:00:13]} h4 {[%emt 0:00:01]} 56. gxh4+ {[%emt 0:00:04]} Kxh4 {[%emt 0:00:02]} 57. a8=Q 1-0

[Event "African Games-chT 2019"]
[Site "Casablanca"]
[Date "2019.08.24"]
[Round "4.18"]
[White "Ebosse, Kingue Victor Patric"]
[Black "Mushore, Emarald Takudzwa"]
[Result "1/2-1/2"]
[ECO "C77"]
[WhiteElo "2055"]
[BlackElo "2198"]
[Annotator "NA"]
[PlyCount "115"]
[EventDate "2019.08.24"]
[EventType "team-tourn"]
[EventCountry "MAR"]
[SourceTitle "playchess.com"]
[Source "ChessBase"]
[SourceQuality "1"]
[WhiteTeam "CMR"]
[BlackTeam "Zimbabwe"]
[BlackTeamCountry "ZIM"]
[TimeControl "900+10"]

1. e4 {[%emt 0:00:35]} e5 {[%emt 0:00:00]} 2. Nf3 {[%emt 0:00:01]} Nc6 {[%emt 0:00:00]} 3. Bb5 {[%emt 0:00:00]} a6 {[%emt 0:00:00]} 4. Ba4 {[%emt 0:00:02]} Nf6 5. d3 d6 {[%emt 0:00:05]} 6. O-O {[%emt 0:00:04]} g6 {[%emt 0:00:01]} 7. c3 {[%emt 0:00:07]} Bg7 {[%emt 0:00:02]} 8. h3 {[%emt 0:00:09]} O-O {[%emt 0:00:03]} 9. Bg5 {[%emt 0:00:03]} h6 {[%emt 0:00:08]} 10. Be3 {[%emt 0:00:02]} b5 {[%emt 0:00:06]} 11. Bc2 {[%emt 0:00:02]} d5 {[%emt 0:00:03]} 12. Nbd2 {[%emt 0:00:34]} Qd6 {[%emt 0:00:18]} 13. Nb3 {[%emt 0:00:10]} Re8 {[%emt 0:00:17]} 14. Qd2 {[%emt 0:00:35]} Kh7 {[%emt 0:00:04]} 15. Rad1 {[%emt 0:00:42]} a5 {[%emt 0:00:07]} 16. Rfe1 {[%emt 0:01:06]} a4 {[%emt 0:00:15]} 17. Nc1 {[%emt 0:00:01]} Bb7 {[%emt 0:00:16]} 18. g4 {[%emt 0:00:34]} Qd7 {[%emt 0:01:47]} 19. Qe2 {[%emt 0:01:28]} b4 {[%emt 0:01:34]} 20. Qf1 {[%emt 0:00:08]} a3 {[%emt 0:00:13]} 21. bxa3 {[%emt 0:01:02]} bxc3 {[%emt 0:00:22]} 22. Ne2 {[%emt 0:01:04]} Rxa3 {[%emt 0:01:01]} 23. Bc1 {[%emt 0:00:07]} Rxa2 {[%emt 0:00:05]} 24. Bb3 {[%emt 0:00:02]} Ra7 {[%emt 0:01:54]} 25. Nxc3 {[%emt 0:00:15]} d4 {[%emt 0:00:02]} 26. Ne2 {[%emt 0:01:43]} Na5 {[%emt 0:01:09]} 27. Bc2 {[%emt 0:00:18]} c5 {[%emt 0:00:17]} 28. Ng3 {[%emt 0:00:09]} Ba6 {[%emt 0:00:35]} 29. g5 {[%emt 0:00:09]} hxg5 {[%emt 0:00:18]} 30. Nxg5+ {[%emt 0:00:09]} Kg8 {[%emt 0:00:01]} 31. Bd2 {[%emt 0:00:08]} Bc8 {[%emt 0:00:25]} 32. Ra1 {[%emt 0:00:11]} Nc6 {[%emt 0:00:16]} 33. Ba4 {[%emt 0:00:03]} Ra6 {[%emt 0:00:44]} 34. Bb3 {[%emt 0:00:22]} Nd8 {[%emt 0:00:27]} 35. Rxa6 {[%emt 0:00:08]} Bxa6 {[%emt 0:00:02]} 36. f4 {[%emt 0:01:43]} exf4 {[%emt 0:01:31]} 37. Qxf4 {[%emt 0:00:16]} Ne6 {[%emt 0:00:25]} 38. Bxe6 {[%emt 0:00:36]} fxe6 {[%emt 0:00:11]} 39. e5 {[%emt 0:00:54]} Nh7 {[%emt 0:00:02]} 40. N3e4 {[%emt 0:00:20]} Nxg5 {[%emt 0:00:25]} 41. Qxg5 {[%emt 0:00:58]} Bxd3 {[%emt 0:00:15]} 42. Qxg6 {[%emt 0:00:32]} Bxe4 {[%emt 0:00:11]} 43. Rxe4 {[%emt 0:00:16]} Qf7 {[%emt 0:00:14]} 44. Qg2 {[%emt 0:00:09]} Qb7 {[%emt 0:00:13]} 45. Qg6 {[%emt 0:00:15]} Qb1+ {[%emt 0:00:33]} 46. Kg2 {[%emt 0:00:18]} Re7 {[%emt 0:00:02]} 47. Bg5 {[%emt 0:00:14]} Rf7 {[%emt 0:00:05]} 48. Bf6 {[%emt 0:00:02]} Qc2+ {[%emt 0:00:22]} 49. Kg3 {[%emt 0:00:11]} Qd3+ {[%emt 0:00:49]} 50. Kh4 {[%emt 0:00:08]} Qc2 {[%emt 0:01:52]} 51. Kh5 {[%emt 0:03:18]} Qb1 {[%emt 0:02:19]} 52. Bxg7 {[%emt 0:00:35]} Rxg7 {[%emt 0:00:02]} 53. Qxe6+ {[%emt 0:00:13]} Kh8 {[%emt 0:00:10]} 54. Qc8+ {[%emt 0:00:06]} Kh7 {[%emt 0:00:29]} 55. Qf5+ {[%emt 0:00:03]} Kg8 {[%emt 0:00:12]} 56. Qc8+ {[%emt 0:00:20]} Kh7 {[%emt 0:00:03]} 57. Qf5+ {[%emt 0:00:01]} Kh8 {[%emt 0:00:02]} 58. Qf8+ {[%emt 0:00:03]} 1/2-1/2

[Event "African Games-chT 2019"]
[Site "Casablanca"]
[Date "2019.08.24"]
[Round "4.19"]
[White "Shaba, Linda"]
[Black "Magne, Kouokam Sylviane"]
[Result "1-0"]
[ECO "D02"]
[WhiteElo "1615"]
[BlackElo "1317"]
[Annotator "NA"]
[PlyCount "87"]
[EventDate "2019.08.24"]
[EventType "team-tourn"]
[EventCountry "MAR"]
[SourceTitle "playchess.com"]
[Source "ChessBase"]
[SourceQuality "1"]
[WhiteTeam "Zimbabwe"]
[BlackTeam "CMR"]
[WhiteTeamCountry "ZIM"]
[TimeControl "900+10"]

1. d4 {[%emt 0:00:00]} d5 {[%emt 0:01:52]} 2. Nf3 {[%emt 0:00:00]} g6 {[%emt 0:00:03]} 3. g3 {[%emt 0:00:03]} Bg7 {[%emt 0:00:01]} 4. Bg2 {[%emt 0:00:03]} Nf6 {[%emt 0:00:01]} 5. O-O {[%emt 0:00:03]} O-O {[%emt 0:00:02]} 6. b3 {[%emt 0:01:09]} b6 {[%emt 0:00:02]} 7. Bb2 {[%emt 0:00:06]} c5 {[%emt 0:00:14]} 8. Nbd2 {[%emt 0:00:13]} Re8 {[%emt 0:00:13]} 9. c4 {[%emt 0:00:45]} Bb7 {[%emt 0:00:22]} 10. dxc5 {[%emt 0:00:04]} bxc5 {[%emt 0:00:03]} 11. cxd5 {[%emt 0:00:09]} Bxd5 {[%emt 0:00:03]} 12. Rc1 {[%emt 0:00:19]} Na6 {[%emt 0:00:16]} 13. Nc4 {[%emt 0:00:26]} Nb4 {[%emt 0:00:33]} 14. a3 {[%emt 0:00:33]} Nc6 {[%emt 0:00:18]} 15. Ne3 {[%emt 0:02:53]} Rb8 {[%emt 0:00:16]} 16. Nxd5 {[%emt 0:00:10]} Qxd5 {[%emt 0:00:04]} 17. Qxd5 {[%emt 0:00:17]} Nxd5 {[%emt 0:00:01]} 18. Bxg7 {[%emt 0:00:03]} Kxg7 {[%emt 0:00:01]} 19. Rxc5 {[%emt 0:00:05]} Rxb3 {[%emt 0:01:25]} 20. Rxc6 {[%emt 0:01:07]} Rxa3 {[%emt 0:00:02]} 21. Nd4 {[%emt 0:00:52]} Nb4 {[%emt 0:00:05]} 22. Nc2 {[%emt 0:01:23]} Nxc2 {[%emt 0:01:30]} 23. Rxc2 {[%emt 0:00:02]} Rb8 {[%emt 0:00:02]} 24. Rc7 {[%emt 0:00:10]} e6 {[%emt 0:00:02]} 25. Rd1 {[%emt 0:00:48]} a5 {[%emt 0:01:16]} 26. Bf3 {[%emt 0:00:42]} Rab3 {[%emt 0:00:24]} 27. Ra1 {[%emt 0:00:49]} R3b5 {[%emt 0:00:16]} 28. Ra7 {[%emt 0:00:04]} Kf6 {[%emt 0:01:05]} 29. R7xa5 {[%emt 0:00:09]} Rxa5 {[%emt 0:00:02]} 30. Rxa5 {[%emt 0:00:02]} Rb1+ {[%emt 0:00:03]} 31. Kg2 {[%emt 0:00:02]} Rb2 {[%emt 0:00:02]} 32. h3 {[%emt 0:00:08]} e5 {[%emt 0:00:10]} 33. Ra6+ {[%emt 0:00:05]} Ke7 {[%emt 0:00:03]} 34. Ra7+ {[%emt 0:00:07]} Kf6 {[%emt 0:00:02]} 35. Bd5 {[%emt 0:00:04]} Rxe2 {[%emt 0:00:24]} 36. Rxf7+ {[%emt 0:00:03]} Kg5 {[%emt 0:00:02]} 37. h4+ {[%emt 0:00:02]} Kh6 {[%emt 0:00:06]} 38. Re7 {[%emt 0:00:24]} Re1 {[%emt 0:00:45]} 39. Bg8 {[%emt 0:00:04]} g5 {[%emt 0:00:09]} 40. Rxh7+ {[%emt 0:00:19]} Kg6 {[%emt 0:00:01]} 41. h5+ {[%emt 0:00:12]} Kf6 {[%emt 0:00:09]} 42. Rf7+ {[%emt 0:00:04]} Ke6 {[%emt 0:00:09]} 43. h6 {[%emt 0:00:06]} Ra1 {[%emt 0:00:26]} 44. Ra7+ {[%emt 0:00:04]} 1-0

[Event "African Games-chT 2019"]
[Site "Casablanca"]
[Date "2019.08.24"]
[Round "4.20"]
[White "Youwou Pedhom, Grace Christie"]
[Black "Wakuruwarewa, Colletta"]
[Result "1-0"]
[ECO "A46"]
[WhiteElo "1640"]
[BlackElo "1587"]
[Annotator "NA"]
[PlyCount "84"]
[EventDate "2019.08.24"]
[EventType "team-tourn"]
[EventCountry "MAR"]
[SourceTitle "playchess.com"]
[Source "ChessBase"]
[SourceQuality "1"]
[BlackTeam "Zimbabwe"]
[BlackTeamCountry "ZIM"]
[TimeControl "900+10"]

1. d4 {[%emt 0:00:04]} Nf6 {[%emt 0:00:00]} 2. Nf3 {[%emt 0:00:05]} e6 {[%emt 0:00:01]} 3. e3 {[%emt 0:00:31]} d5 {[%emt 0:00:02]} 4. c4 {[%emt 0:00:16]} c5 {[%emt 0:00:18]} 5. cxd5 {[%emt 0:01:41]} Nxd5 {[%emt 0:00:13]} 6. dxc5 {[%emt 0:00:54]} Bxc5 {[%emt 0:00:08]} 7. e4 {[%emt 0:00:04]} Nc7 {[%emt 0:01:20]} 8. Qxd8+ {[%emt 0:00:04]} Kxd8 {[%emt 0:00:01]} 9. Be2 {[%emt 0:00:24]} Ke7 {[%emt 0:00:33]} 10. O-O {[%emt 0:00:28]} h6 {[%emt 0:00:24]} 11. Nc3 {[%emt 0:00:12]} Rd8 {[%emt 0:00:13]} 12. b3 {[%emt 0:01:10]} Nc6 {[%emt 0:00:20]} 13. Bb2 {[%emt 0:00:44]} Kf8 {[%emt 0:00:32]} 14. Rad1 {[%emt 0:00:43]} Bd7 {[%emt 0:00:25]} 15. Na4 {[%emt 0:00:39]} Be7 {[%emt 0:00:14]} 16. Be5 {[%emt 0:00:32]} Ne8 {[%emt 0:00:31]} 17. Rd2 {[%emt 0:00:24]} Nxe5 {[%emt 0:00:12]} 18. Nxe5 {[%emt 0:00:03]} Bxa4 {[%emt 0:00:05]} 19. Rxd8 {[%emt 0:00:16]} Rxd8 {[%emt 0:00:08]} 20. bxa4 {[%emt 0:00:10]} Rd4 {[%emt 0:01:12]} 21. f3 {[%emt 0:03:32]} Bc5 {[%emt 0:00:29]} 22. Kh1 {[%emt 0:00:23]} Rxa4 {[%emt 0:01:43]} 23. Nd7+ {[%emt 0:00:04]} Ke7 {[%emt 0:00:06]} 24. Nxc5 {[%emt 0:00:03]} Rxa2 {[%emt 0:00:02]} 25. Re1 {[%emt 0:00:52]} b6 {[%emt 0:00:14]} 26. Nb3 {[%emt 0:00:09]} Nd6 {[%emt 0:00:15]} 27. Nc1 {[%emt 0:00:02]} Rc2 {[%emt 0:00:13]} 28. Nd3 {[%emt 0:00:11]} a5 {[%emt 0:00:12]} 29. e5 Nf5 {[%emt 0:00:13]} 30. g4 {[%emt 0:00:48]} Nd4 {[%emt 0:00:03]} 31. Bd1 {[%emt 0:00:06]} Ra2 {[%emt 0:00:33]} 32. Re4 {[%emt 0:00:19]} Nb5 {[%emt 0:00:50]} 33. h4 {[%emt 0:00:28]} Nc3 {[%emt 0:00:54]} 34. Rc4 {[%emt 0:00:11]} Nxd1 {[%emt 0:00:10]} 35. Rc7+ {[%emt 0:00:15]} Ke8 {[%emt 0:00:37]} 36. Rb7 {[%emt 0:00:09]} Rd2 {[%emt 0:00:15]} 37. Nf4 {[%emt 0:00:09]} Nf2+ {[%emt 0:00:06]} 38. Kg1 {[%emt 0:00:12]} Rb2 {[%emt 0:00:23]} 39. g5 {[%emt 0:00:08]} hxg5 {[%emt 0:00:10]} 40. hxg5 {[%emt 0:00:13]} g6 {[%emt 0:00:27]} 41. Ng2 {[%emt 0:00:14]} Nh3+ {[%emt 0:00:42] f4 a4+} 42. Kf1 {[%emt 0:01:48] a3 Nh4 a2 Ra7} Rb1+ {[%emt 0:00:00] Kg2 Nxf4+ Kg3 Nh5+ Kg4 a1=Q Rxa1 Rxa1 Nf3 b5 Nd4 Ra4} 1-0

[Event "African Games-chT 2019"]
[Site "Casablanca"]
[Date "2019.08.24"]
[Round "4.21"]
[White "Beukes, Dante M"]
[Black "Aderito, Pedro"]
[Result "1-0"]
[ECO "B06"]
[WhiteElo "2130"]
[BlackElo "2301"]
[Annotator "NA"]
[PlyCount "58"]
[EventDate "2019.08.24"]
[EventType "team-tourn"]
[EventCountry "MAR"]
[SourceTitle "playchess.com"]
[Source "ChessBase"]
[SourceQuality "1"]
[WhiteTeam "Namibia"]
[BlackTeam "Angola"]
[WhiteTeamCountry "NAM"]
[BlackTeamCountry "ANG"]
[TimeControl "900+10"]

1. e4 {[%emt 0:00:00]} d6 {[%emt 0:00:00]} 2. d4 {[%emt 0:00:03]} g6 {[%emt 0:00:04]} 3. Nc3 {[%emt 0:00:03]} Bg7 {[%emt 0:00:02]} 4. f4 {[%emt 0:00:02]} a6 {[%emt 0:00:49]} 5. Nf3 {[%emt 0:00:02]} c6 {[%emt 0:00:13]} 6. Bd3 {[%emt 0:00:11]} b5 {[%emt 0:00:07]} 7. e5 {[%emt 0:00:37]} Nh6 {[%emt 0:00:12]} 8. Ne4 {[%emt 0:00:16]} O-O {[%emt 0:00:12]} 9. O-O {[%emt 0:00:11]} f5 {[%emt 0:02:08]} 10. Neg5 {[%emt 0:01:05]} dxe5 {[%emt 0:01:08]} 11. dxe5 {[%emt 0:00:32]} Qb6+ {[%emt 0:00:58]} 12. Kh1 {[%emt 0:00:06]} Ng4 {[%emt 0:00:06]} 13. Qe2 {[%emt 0:00:17]} h6 {[%emt 0:00:13]} 14. Nh3 {[%emt 0:00:14]} c5 {[%emt 0:00:11]} 15. c3 {[%emt 0:00:36]} Bb7 {[%emt 0:02:44]} 16. Nf2 {[%emt 0:00:38]} Nxf2+ {[%emt 0:00:22]} 17. Qxf2 {[%emt 0:00:12]} Nd7 {[%emt 0:00:06]} 18. Be3 {[%emt 0:00:12]} Qc6 {[%emt 0:00:21]} 19. Qg3 {[%emt 0:01:39]} Kf7 {[%emt 0:01:36]} 20. Nh4 {[%emt 0:01:29]} Rg8 {[%emt 0:00:25]} 21. Be2 {[%emt 0:00:47]} Qe6 {[%emt 0:00:23]} 22. Rad1 {[%emt 0:00:35]} Bf8 {[%emt 0:01:55]} 23. Nxf5 {[%emt 0:01:15]} Qxf5 {[%emt 0:01:52]} 24. Bg4 {[%emt 0:00:21]} Qc2 {[%emt 0:01:04]} 25. Rxd7 {[%emt 0:01:17]} Bc6 {[%emt 0:01:32]} 26. Rd2 {[%emt 0:00:06]} Qa4 {[%emt 0:00:13]} 27. Bxc5 {[%emt 0:01:09]} Qc4 {[%emt 0:00:18]} 28. Qf2 {[%emt 0:00:02]} Qxa2 {[%emt 0:00:07]} 29. f5 {[%emt 0:00:32]} Ke8 1-0